[Event "11th LCC Super Blitz 2019"]
[Site "London"]
[Date "2019.12.08"]
[Round "5.13"]
[White "Thatte, Nandinee"]
[Black "Watson, Steven L"]
[Result "1-0"]
[ECO "A52"]
[WhiteElo "1270"]
[BlackElo "1634"]
[Annotator "NA"]
[PlyCount "74"]
[EventDate "2019.12.08"]
[EventType "swiss"]
[EventCountry "ENG"]
[SourceTitle "playchess.com"]
[Source "ChessBase"]
[SourceQuality "1"]
[TimeControl "180+2"]

1. d4 {[%emt 0:00:00]} Nf6 {[%emt 0:00:00]} 2. c4 {[%emt 0:00:01]} e5 {[%emt 0:00:02]} 3. dxe5 {[%emt 0:00:02]} Ng4 {[%emt 0:00:01]} 4. Nf3 {[%emt 0:00:03]} Bc5 {[%emt 0:00:04]} 5. e3 {[%emt 0:00:05]} Nc6 {[%emt 0:00:03]} 6. Nc3 {[%emt 0:00:06]} Ngxe5 {[%emt 0:00:05]} 7. Be2 {[%emt 0:00:13]} O-O {[%emt 0:00:11]} 8. b3 {[%emt 0:00:03]} d6 {[%emt 0:00:15]} 9. Bb2 {[%emt 0:00:02]} Bg4 {[%emt 0:00:13]} 10. O-O {[%emt 0:00:07]} Bxf3 {[%emt 0:00:21]} 11. Bxf3 {[%emt 0:00:04]} Qh4 {[%emt 0:00:03]} 12. Nd5 {[%emt 0:00:20]} Bb6 {[%emt 0:00:09]} 13. h3 {[%emt 0:00:24]} Kh8 {[%emt 0:00:01]} 14. a4 {[%emt 0:00:11]} a5 {[%emt 0:00:12]} 15. Nxb6 {[%emt 0:00:03]} cxb6 {[%emt 0:00:02]} 16. Bxc6 {[%emt 0:00:10]} bxc6 {[%emt 0:00:04]} 17. Qxd6 {[%emt 0:00:04]} Ng6 {[%emt 0:00:22]} 18. Qxc6 {[%emt 0:00:08]} Rab8 {[%emt 0:00:07]} 19. Rfd1 {[%emt 0:00:22]} Rfc8 {[%emt 0:00:02]} 20. Qf3 {[%emt 0:00:13]} f6 {[%emt 0:00:06]} 21. Rd7 {[%emt 0:00:09]} Re8 {[%emt 0:00:09]} 22. Rad1 {[%emt 0:00:04]} Ne5 {[%emt 0:00:02]} 23. Bxe5 {[%emt 0:00:11]} fxe5 {[%emt 0:00:01]} 24. Qg3 {[%emt 0:00:13]} Qf6 {[%emt 0:00:03]} 25. R1d6 {[%emt 0:00:04]} Qf8 {[%emt 0:00:06]} 26. Rd1 {[%emt 0:00:08]} Rbd8 {[%emt 0:00:04]} 27. Rxd8 {[%emt 0:00:03]} Rxd8 {[%emt 0:00:01]} 28. Rxd8 {[%emt 0:00:04]} Qxd8 {[%emt 0:00:02]} 29. Qxe5 {[%emt 0:00:01]} Qd1+ {[%emt 0:00:02]} 30. Kh2 {[%emt 0:00:02]} Qd8 {[%emt 0:00:03]} 31. Qb5 {[%emt 0:00:06]} Qc7+ {[%emt 0:00:01]} 32. g3 {[%emt 0:00:02]} h6 {[%emt 0:00:02]} 33. Qd5 {[%emt 0:00:09]} Kh7 {[%emt 0:00:02]} 34. e4 {[%emt 0:00:02]} Qe7 {[%emt 0:00:03]} 35. e5 {[%emt 0:00:03]} Qb4 {[%emt 0:00:02]} 36. Qf3 {[%emt 0:00:02]} Qe7 {[%emt 0:00:02]} 37. Qe4+ {[%emt 0:00:02]} Kh8 {[%emt 0:00:03]} 1-0

[Event "11th LCC Super Blitz 2019"]
[Site "London"]
[Date "2019.12.08"]
[Round "5.15"]
[White "Essis, Essoh Jean Mathieu C"]
[Black "Bergner, Matthias"]
[Result "0-1"]
[ECO "A80"]
[WhiteElo "1438"]
[BlackElo "1632"]
[Annotator "NA"]
[PlyCount "136"]
[EventDate "2019.12.08"]
[EventType "swiss"]
[EventCountry "ENG"]
[SourceTitle "playchess.com"]
[Source "ChessBase"]
[SourceQuality "1"]
[TimeControl "180+2"]

1. d4 {[%emt 0:00:00]} d5 {[%emt 0:00:00]} 2. Nf3 {[%emt 0:00:02]} e6 {[%emt 0:00:00]} 3. Bf4 {[%emt 0:00:04]} f5 {[%emt 0:00:01]} 4. e3 {[%emt 0:00:14]} Nf6 {[%emt 0:00:02]} 5. Bd3 {[%emt 0:00:05]} Bd6 {[%emt 0:00:04]} 6. Bg5 {[%emt 0:00:11]} Be7 {[%emt 0:00:07]} 7. c3 {[%emt 0:00:08]} O-O {[%emt 0:00:02]} 8. Nbd2 {[%emt 0:00:08]} Nbd7 {[%emt 0:00:04]} 9. Bb5 {[%emt 0:00:19]} c6 {[%emt 0:00:05]} 10. Bd3 {[%emt 0:00:02]} Ne4 {[%emt 0:00:07]} 11. Bxe7 {[%emt 0:00:04]} Qxe7 {[%emt 0:00:02]} 12. Bxe4 {[%emt 0:00:03]} fxe4 {[%emt 0:00:02]} 13. Ng1 {[%emt 0:00:20]} Qf6 {[%emt 0:00:08]} 14. Nh3 {[%emt 0:00:17]} e5 {[%emt 0:00:06]} 15. O-O {[%emt 0:00:08]} exd4 {[%emt 0:00:03]} 16. cxd4 {[%emt 0:00:02]} Nb6 {[%emt 0:00:16]} 17. b3 {[%emt 0:00:02]} Bxh3 {[%emt 0:00:03]} 18. gxh3 {[%emt 0:00:02]} Qg5+ {[%emt 0:00:15]} 19. Qg4 {[%emt 0:00:09]} Qxg4+ 20. hxg4 {[%emt 0:00:01]} Rf7 {[%emt 0:00:48]} 21. f4 {[%emt 0:00:04]} g6 {[%emt 0:00:07]} 22. g5 {[%emt 0:00:04]} Nc8 {[%emt 0:00:06]} 23. Rf2 {[%emt 0:00:02]} Ne7 {[%emt 0:00:01]} 24. h4 {[%emt 0:00:07]} Nf5 {[%emt 0:00:01]} 25. Re1 {[%emt 0:00:18]} Nxh4 {[%emt 0:00:04]} 26. Rh2 {[%emt 0:00:03]} Nf5 {[%emt 0:00:04]} 27. Kf2 {[%emt 0:00:04]} b6 {[%emt 0:00:15]} 28. b4 {[%emt 0:00:04]} a5 {[%emt 0:00:04]} 29. a3 {[%emt 0:00:19]} axb4 {[%emt 0:00:02]} 30. axb4 {[%emt 0:00:01]} Ra2 {[%emt 0:00:01]} 31. Re2 {[%emt 0:00:03]} Rfa7 {[%emt 0:00:06]} 32. Nb3 {[%emt 0:00:08]} Rxe2+ {[%emt 0:00:04]} 33. Kxe2 {[%emt 0:00:01]} Ra2+ {[%emt 0:00:02]} 34. Nd2 {[%emt 0:00:04]} Rb2 {[%emt 0:00:14]} 35. Kd1 {[%emt 0:00:01]} Rxb4 {[%emt 0:00:04]} 36. Re2 {[%emt 0:00:05]} c5 {[%emt 0:00:02]} 37. dxc5 {[%emt 0:00:06]} bxc5 {[%emt 0:00:01]} 38. Kc2 {[%emt 0:00:03]} Ra4 {[%emt 0:00:03]} 39. Kb3 {[%emt 0:00:01]} Rb4+ {[%emt 0:00:02]} 40. Ka3 {[%emt 0:00:04]} Kf7 {[%emt 0:00:06]} 41. Nb3 {[%emt 0:00:01]} Rc4 {[%emt 0:00:10]} 42. Nd2 {[%emt 0:00:04]} Rc3+ {[%emt 0:00:01]} 43. Ka4 {[%emt 0:00:03]} Rxe3 {[%emt 0:00:03]} 44. Rxe3 Nxe3 {[%emt 0:00:01]} 45. Kb5 {[%emt 0:00:02]} c4 {[%emt 0:00:03]} 46. Kc5 {[%emt 0:00:02]} Ke6 {[%emt 0:00:01]} 47. Kd4 {[%emt 0:00:01]} Ng2 {[%emt 0:00:04]} 48. Nf1 {[%emt 0:00:06]} Nxf4 {[%emt 0:00:02]} 49. Ne3 {[%emt 0:00:02]} Ne2+ {[%emt 0:00:03]} 50. Kc5 {[%emt 0:00:02]} Ng3 {[%emt 0:00:03]} 51. Ng4 {[%emt 0:00:05]} Kf5 {[%emt 0:00:01]} 52. Nh6+ {[%emt 0:00:02]} Kxg5 {[%emt 0:00:02]} 53. Nf7+ {[%emt 0:00:01]} Kf6 {[%emt 0:00:02]} 54. Nd8 {[%emt 0:00:03]} Ke5 {[%emt 0:00:03]} 55. Nf7+ {[%emt 0:00:02]} Kf4 {[%emt 0:00:01]} 56. Nd6 {[%emt 0:00:07]} e3 {[%emt 0:00:01]} 57. Nf7 {[%emt 0:00:04]} e2 {[%emt 0:00:02]} 58. Kxd5 {[%emt 0:00:02]} e1=Q {[%emt 0:00:05]} 59. Kxc4 {[%emt 0:00:02]} Qe6+ {[%emt 0:00:07]} 60. Kd4 {[%emt 0:00:02]} Qxf7 {[%emt 0:00:02]} 61. Kc5 {[%emt 0:00:00]} Qd7 {[%emt 0:00:02]} 62. Kb6 {[%emt 0:00:03]} Qc8 {[%emt 0:00:04]} 63. Kb5 {[%emt 0:00:00]} Qc7 {[%emt 0:00:01]} 64. Ka6 {[%emt 0:00:03]} Qb8 {[%emt 0:00:01]} 65. Ka5 {[%emt 0:00:01]} Ke4 {[%emt 0:00:02]} 66. Ka6 {[%emt 0:00:02]} Kd5 {[%emt 0:00:01]} 67. Ka5 {[%emt 0:00:01]} Kc5 {[%emt 0:00:01]} 68. Ka4 {[%emt 0:00:01]} Qb4# {[%emt 0:00:01]} 0-1

[Event "11th LCC Super Blitz 2019"]
[Site "London"]
[Date "2019.12.08"]
[Round "6.1"]
[White "Howell, David Wl"]
[Black "Grover, Sahaj"]
[Result "1-0"]
[ECO "A13"]
[WhiteElo "2650"]
[BlackElo "2486"]
[Annotator "ChessBase"]
[PlyCount "75"]
[EventDate "2019.12.08"]
[EventType "swiss"]
[EventCountry "ENG"]
[SourceTitle "playchess.com"]
[Source "ChessBase"]
[SourceQuality "1"]
[TimeControl "180+2"]

1. Nf3 {[%emt 0:00:00]} Nf6 {[%emt 0:00:00]} 2. c4 {[%emt 0:00:02]} e6 {[%emt 0:00:02]} 3. g3 {[%emt 0:00:04]} d5 {[%emt 0:00:01]} 4. Bg2 {[%emt 0:00:01]} dxc4 {[%emt 0:00:01]} 5. Qa4+ {[%emt 0:00:02]} Bd7 {[%emt 0:00:01]} 6. Qxc4 {[%emt 0:00:02]} c5 {[%emt 0:00:00]} 7. Ne5 {[%emt 0:00:02]} Qc8 {[%emt 0:00:01]} 8. Nc3 {[%emt 0:00:04]} Nc6 {[%emt 0:00:03]} 9. Nxd7 {[%emt 0:00:04]} Qxd7 {[%emt 0:00:02]} 10. O-O {[%emt 0:00:08]} Be7 {[%emt 0:00:01]} 11. d3 {[%emt 0:00:01]} Rc8 {[%emt 0:00:08]} 12. Bg5 {[%emt 0:00:03]} b6 {[%emt 0:00:14]} 13. Qa4 {[%emt 0:00:19]} O-O {[%emt 0:00:08]} 14. Rfc1 {[%emt 0:00:02]} Rfd8 {[%emt 0:00:25]} 15. Kf1 {[%emt 0:00:12]} h6 {[%emt 0:00:11]} 16. Bd2 {[%emt 0:00:01]} Nd5 {[%emt 0:00:11]} 17. Rab1 {[%emt 0:00:06]} Bf6 {[%emt 0:00:45]} 18. Ne4 {[%emt 0:00:16]} Be7 {[%emt 0:00:01]} 19. a3 {[%emt 0:00:05]} a5 {[%emt 0:00:11]} 20. Be1 {[%emt 0:00:14]} f5 {[%emt 0:00:11]} 21. Nd2 {[%emt 0:00:03]} Bg5 {[%emt 0:00:13]} 22. Rd1 {[%emt 0:00:09]} Rb8 {[%emt 0:00:23]} 23. Qc4 {[%emt 0:00:28]} Be7 {[%emt 0:00:12]} 24. Rbc1 {[%emt 0:00:10]} b5 {[%emt 0:00:02]} 25. Qa2 {[%emt 0:00:01]} a4 {[%emt 0:00:04]} 26. b3 {[%emt 0:00:09]} axb3 {[%emt 0:00:04]} 27. Nxb3 {[%emt 0:00:01]} Qa7 {[%emt 0:00:01]} 28. Rd2 {[%emt 0:00:16]} Bg5 {[%emt 0:00:09]} 29. Nxc5 {[%emt 0:00:12]} Bxd2 {[%emt 0:00:02]} 30. Bxd2 {[%emt 0:00:00]} Qf7 {[%emt 0:00:05]} 31. Rb1 {[%emt 0:00:04]} b4 {[%emt 0:00:05]} 32. axb4 {[%emt 0:00:05]} Ncxb4 {[%emt 0:00:01]} 33. Qc4 {[%emt 0:00:18]} Nc6 {[%emt 0:00:02]} 34. Rxb8 Nxb8 {[%emt 0:00:01]} 35. h4 {[%emt 0:00:08]} Nd7 {[%emt 0:00:02]} 36. Nxe6 {[%emt 0:00:04]} N7b6 {[%emt 0:00:07]} 37. Nxd8 {[%emt 0:00:01]} Nxc4 {[%emt 0:00:00]} 38. Nxf7 {[%emt 0:00:02]} 1-0

[Event "11th LCC Super Blitz 2019"]
[Site "London"]
[Date "2019.12.08"]
[Round "6.2"]
[White "Rowson, Jonathan"]
[Black "Bukojemski, Adam"]
[Result "0-1"]
[ECO "D80"]
[WhiteElo "2561"]
[BlackElo "2219"]
[Annotator "ChessBase"]
[PlyCount "72"]
[EventDate "2019.12.08"]
[EventType "swiss"]
[EventCountry "ENG"]
[SourceTitle "playchess.com"]
[Source "ChessBase"]
[SourceQuality "1"]
[TimeControl "180+2"]

1. d4 {[%emt 0:00:00]} Nf6 {[%emt 0:00:00]} 2. c4 {[%emt 0:00:04]} g6 {[%emt 0:00:00]} 3. Nc3 d5 {[%emt 0:00:02]} 4. e3 {[%emt 0:00:16]} Bg7 {[%emt 0:00:03]} 5. Qb3 {[%emt 0:00:01]} O-O {[%emt 0:00:12]} 6. cxd5 {[%emt 0:00:02]} c6 {[%emt 0:00:01]} 7. dxc6 {[%emt 0:00:03]} Nxc6 {[%emt 0:00:01]} 8. Nf3 {[%emt 0:00:01]} e5 {[%emt 0:00:10]} 9. dxe5 {[%emt 0:00:15]} Ng4 {[%emt 0:00:01]} 10. Be2 {[%emt 0:00:10]} Be6 {[%emt 0:00:05]} 11. Qxb7 {[%emt 0:00:11]} Ngxe5 {[%emt 0:00:01]} 12. Nxe5 {[%emt 0:00:05]} Nxe5 {[%emt 0:00:02]} 13. O-O {[%emt 0:00:07]} Nd3 {[%emt 0:00:07]} 14. Rd1 {[%emt 0:00:21]} Nc5 {[%emt 0:00:20]} 15. Rxd8 {[%emt 0:00:08]} Nxb7 {[%emt 0:00:01]} 16. Rxa8 {[%emt 0:00:03]} Rxa8 {[%emt 0:00:02]} 17. Bd2 {[%emt 0:00:04]} Nc5 {[%emt 0:00:05]} 18. Rd1 {[%emt 0:00:06]} a5 {[%emt 0:00:01]} 19. Be1 {[%emt 0:00:08]} a4 {[%emt 0:00:05]} 20. a3 {[%emt 0:00:27]} Rb8 21. Nb5 {[%emt 0:00:18]} Bxb2 {[%emt 0:00:03]} 22. Bb4 {[%emt 0:00:05]} Nb3 {[%emt 0:00:24]} 23. Bc3 {[%emt 0:00:16]} Bc1 {[%emt 0:00:16]} 24. h4 {[%emt 0:00:11]} h5 {[%emt 0:00:01]} 25. Bf6 {[%emt 0:00:08]} Kf8 {[%emt 0:00:09]} 26. Nc7 {[%emt 0:00:03]} Bxa3 {[%emt 0:00:12]} 27. Nxe6+ fxe6 28. Rd7 {[%emt 0:00:01]} Nc5 {[%emt 0:00:07]} 29. Rh7 {[%emt 0:00:01]} Rb1+ {[%emt 0:00:14]} 30. Kh2 {[%emt 0:00:03]} Ne4 {[%emt 0:00:02]} 31. Bd4 {[%emt 0:00:10]} Bd6+ {[%emt 0:00:10]} 32. f4 {[%emt 0:00:03]} Nc5 {[%emt 0:00:13]} 33. Bc4 {[%emt 0:00:02]} Rc1 {[%emt 0:00:11]} 34. Bb5 {[%emt 0:00:04]} a3 {[%emt 0:00:02]} 35. Ra7 Nb3 {[%emt 0:00:12]} 36. Bf6 {[%emt 0:00:07]} Bc5 {[%emt 0:00:03]} 0-1

[Event "11th LCC Super Blitz 2019"]
[Site "London"]
[Date "2019.12.08"]
[Round "6.2"]
[White "Pert, Nicholas"]
[Black "Klingher, Dominic"]
[Result "0-1"]
[ECO "A49"]
[WhiteElo "2560"]
[BlackElo "2071"]
[Annotator "ChessBase"]
[PlyCount "143"]
[EventDate "2019.12.08"]
[EventType "swiss"]
[EventCountry "ENG"]
[SourceTitle "playchess.com"]
[Source "ChessBase"]
[SourceQuality "1"]
[TimeControl "180+2"]

1. d4 {[%emt 0:00:00]} Nf6 {[%emt 0:00:00]} 2. Nf3 {[%emt 0:00:00]} d6 {[%emt 0:00:00]} 3. g3 {[%emt 0:00:01]} g6 {[%emt 0:00:02]} 4. Bg2 {[%emt 0:00:01]} Bg7 {[%emt 0:00:02]} 5. O-O {[%emt 0:00:01]} O-O {[%emt 0:00:01]} 6. Nc3 {[%emt 0:00:02]} Nbd7 {[%emt 0:00:02]} 7. a4 {[%emt 0:00:01]} c5 {[%emt 0:00:03]} 8. d5 {[%emt 0:00:06]} a6 {[%emt 0:00:04]} 9. a5 {[%emt 0:00:03]} Rb8 {[%emt 0:00:02]} 10. e4 {[%emt 0:00:02]} b5 {[%emt 0:00:06]} 11. axb6 {[%emt 0:00:01]} Nxb6 {[%emt 0:00:01]} 12. Re1 {[%emt 0:00:03]} Ng4 {[%emt 0:00:08]} 13. h3 {[%emt 0:00:08]} Ne5 {[%emt 0:00:03]} 14. Nxe5 {[%emt 0:00:01]} Bxe5 {[%emt 0:00:01]} 15. Bh6 {[%emt 0:00:03]} Re8 {[%emt 0:00:08]} 16. Qd3 {[%emt 0:00:15]} e6 {[%emt 0:00:20]} 17. dxe6 Bxe6 {[%emt 0:00:02]} 18. b3 {[%emt 0:00:28]} Qf6 {[%emt 0:00:17]} 19. Bd2 {[%emt 0:00:11]} c4 {[%emt 0:00:12]} 20. bxc4 {[%emt 0:00:25]} Nxc4 {[%emt 0:00:05]} 21. Re3 {[%emt 0:01:32]} Nxe3 {[%emt 0:00:08]} 22. Qxe3 {[%emt 0:00:03]} Bd4 {[%emt 0:00:10]} 23. Qf3 {[%emt 0:00:01]} Qxf3 {[%emt 0:00:18]} 24. Bxf3 {[%emt 0:00:01]} Bxh3 {[%emt 0:00:27]} 25. g4 {[%emt 0:00:03]} Rb2 {[%emt 0:00:07]} 26. Rc1 {[%emt 0:00:04]} Be5 {[%emt 0:00:08]} 27. Ne2 {[%emt 0:00:01]} h5 {[%emt 0:00:11]} 28. gxh5 {[%emt 0:00:01]} gxh5 {[%emt 0:00:01]} 29. Bxh5 {[%emt 0:00:01]} Kh7 {[%emt 0:00:08]} 30. Ng3 {[%emt 0:00:01]} Reb8 {[%emt 0:00:04]} 31. Kh2 {[%emt 0:00:02]} Be6 {[%emt 0:00:02]} 32. f4 {[%emt 0:00:01]} Bd4 {[%emt 0:00:05]} 33. f5 {[%emt 0:00:01]} Bc4 {[%emt 0:00:01]} 34. Bf4 {[%emt 0:00:04]} Rb1 {[%emt 0:00:02]} 35. Rxb1 {[%emt 0:00:02]} Rxb1 {[%emt 0:00:02]} 36. Bxd6 {[%emt 0:00:01]} Rc1 {[%emt 0:00:07]} 37. e5 {[%emt 0:00:03]} Rxc2+ {[%emt 0:00:01]} 38. Kh3 {[%emt 0:00:01]} Bd5 {[%emt 0:00:04]} 39. Bg4 {[%emt 0:00:03]} Bg2+ {[%emt 0:00:03]} 40. Kh4 {[%emt 0:00:01]} Bf2 {[%emt 0:00:04]} 41. e6 {[%emt 0:00:01]} fxe6 {[%emt 0:00:02]} 42. fxe6 {[%emt 0:00:01]} Rc3 {[%emt 0:00:01]} 43. e7 {[%emt 0:00:02]} Re3 {[%emt 0:00:04]} 44. Kg5 {[%emt 0:00:17]} Bxg3 {[%emt 0:00:09]} 45. Bf5+ Kg7 {[%emt 0:00:00]} 46. Bd7 {[%emt 0:00:08]} Bxd6 {[%emt 0:00:08]} 47. e8=Q {[%emt 0:00:00]} Rxe8 {[%emt 0:00:01]} 48. Bxe8 {[%emt 0:00:01]} a5 {[%emt 0:00:02]} 49. Kf5 {[%emt 0:00:01]} Bd5 {[%emt 0:00:03]} 50. Ba4 {[%emt 0:00:02]} Kf7 {[%emt 0:00:01]} 51. Bc2 {[%emt 0:00:03]} Ke7 {[%emt 0:00:03]} 52. Ba4 {[%emt 0:00:01]} Kd8 {[%emt 0:00:01]} 53. Bb5 {[%emt 0:00:06]} Kc7 {[%emt 0:00:01]} 54. Ba4 {[%emt 0:00:01]} Kb6 {[%emt 0:00:01]} 55. Kf6 {[%emt 0:00:03]} Kc5 {[%emt 0:00:03]} 56. Kf5 {[%emt 0:00:02]} Kb4 {[%emt 0:00:03]} 57. Be8 {[%emt 0:00:00]} a4 {[%emt 0:00:04]} 58. Bxa4 Kxa4 {[%emt 0:00:01]} 59. Kf6 {[%emt 0:00:03]} Kb5 {[%emt 0:00:00]} 60. Kf5 {[%emt 0:00:01]} Kc4 {[%emt 0:00:01]} 61. Kf6 {[%emt 0:00:00]} Kd4 {[%emt 0:00:01]} 62. Kf5 {[%emt 0:00:01]} Be5 {[%emt 0:00:02]} 63. Kg5 {[%emt 0:00:00]} Ke4 {[%emt 0:00:01]} 64. Kg4 {[%emt 0:00:01]} Be6+ {[%emt 0:00:01]} 65. Kg5 {[%emt 0:00:01]} Bf5 {[%emt 0:00:02]} 66. Kh5 Bf4 {[%emt 0:00:06]} 67. Kh4 {[%emt 0:00:01]} Kf3 {[%emt 0:00:02]} 68. Kh5 {[%emt 0:00:00]} Bd2 {[%emt 0:00:02]} 69. Kh4 {[%emt 0:00:01]} Bf4 {[%emt 0:00:07]} 70. Kh5 {[%emt 0:00:00]} Be3 {[%emt 0:00:01]} 71. Kh4 {[%emt 0:00:01]} Bf4 {[%emt 0:00:05]} 72. Kh5 0-1

[Event "11th LCC Super Blitz 2019"]
[Site "London"]
[Date "2019.12.08"]
[Round "6.2"]
[White "Beinoras, Mindaugas"]
[Black "Roberson, Peter T"]
[Result "0-1"]
[ECO "A75"]
[WhiteElo "2401"]
[BlackElo "2282"]
[Annotator "NA"]
[PlyCount "70"]
[EventDate "2019.12.08"]
[EventType "swiss"]
[EventCountry "ENG"]
[SourceTitle "playchess.com"]
[Source "ChessBase"]
[SourceQuality "1"]
[TimeControl "180+2"]

1. d4 {[%emt 0:00:00]} e6 {[%emt 0:00:00]} 2. c4 {[%emt 0:00:00]} Nf6 {[%emt 0:00:00]} 3. Nf3 c5 4. d5 {[%emt 0:00:08]} d6 {[%emt 0:00:01]} 5. Nc3 {[%emt 0:00:02]} exd5 {[%emt 0:00:00]} 6. cxd5 {[%emt 0:00:01]} g6 {[%emt 0:00:01]} 7. e4 {[%emt 0:00:05]} a6 8. a4 {[%emt 0:00:02]} Bg4 {[%emt 0:00:02]} 9. Be2 {[%emt 0:00:04]} Bxf3 {[%emt 0:00:02]} 10. Bxf3 {[%emt 0:00:03]} Bg7 {[%emt 0:00:01]} 11. O-O {[%emt 0:00:02]} O-O {[%emt 0:00:01]} 12. Bf4 {[%emt 0:00:05]} Qe7 {[%emt 0:00:01]} 13. Qb3 {[%emt 0:00:04]} Nbd7 {[%emt 0:00:53]} 14. Qxb7 {[%emt 0:00:14]} Rfb8 {[%emt 0:00:14]} 15. Qc7 {[%emt 0:00:25]} Ne8 {[%emt 0:00:03]} 16. Qa5 {[%emt 0:00:07]} Rxb2 {[%emt 0:00:11]} 17. Rab1 {[%emt 0:00:18]} Rb4 {[%emt 0:00:07]} 18. Na2 {[%emt 0:00:03]} Rxb1 {[%emt 0:00:16]} 19. Rxb1 {[%emt 0:00:01]} Ne5 {[%emt 0:00:17]} 20. Be2 {[%emt 0:00:01]} c4 {[%emt 0:00:10]} 21. Nb4 {[%emt 0:00:05]} Rb8 {[%emt 0:00:04]} 22. Rc1 {[%emt 0:00:06]} Qb7 {[%emt 0:00:26]} 23. Bd2 {[%emt 0:00:24]} Nf6 {[%emt 0:00:20]} 24. f3 {[%emt 0:00:06]} Nfd7 {[%emt 0:00:05]} 25. f4 {[%emt 0:00:26]} Qa7+ {[%emt 0:00:06]} 26. Kf1 {[%emt 0:00:06]} Nd3 {[%emt 0:00:07]} 27. Bxd3 {[%emt 0:00:04]} cxd3 {[%emt 0:00:02]} 28. Nc6 {[%emt 0:00:01]} Qd4 {[%emt 0:00:12]} 29. Nxd4 {[%emt 0:00:02]} Bxd4 {[%emt 0:00:06]} 30. Qc7 {[%emt 0:00:01]} Rb2 {[%emt 0:00:04]} 31. Rd1 {[%emt 0:00:36]} Nc5 {[%emt 0:00:03]} 32. e5 {[%emt 0:00:07]} Ne4 {[%emt 0:00:03]} 33. Qc8+ {[%emt 0:00:09]} Kg7 {[%emt 0:00:01]} 34. Qc4 {[%emt 0:00:05]} Nxd2+ {[%emt 0:00:01]} 35. Rxd2 {[%emt 0:00:01]} Rb1+ {[%emt 0:00:02]} 0-1

[Event "11th LCC Super Blitz 2019"]
[Site "London"]
[Date "2019.12.08"]
[Round "6.3"]
[White "Aravindh, Chithambaram Vr"]
[Black "Stoyanov, Viktor"]
[Result "1-0"]
[ECO "D46"]
[WhiteElo "2560"]
[BlackElo "2191"]
[Annotator "ChessBase"]
[PlyCount "107"]
[EventDate "2019.12.08"]
[EventType "swiss"]
[EventCountry "ENG"]
[SourceTitle "playchess.com"]
[Source "ChessBase"]
[SourceQuality "1"]
[TimeControl "180+2"]

1. d4 {[%emt 0:00:00]} Nf6 {[%emt 0:00:00]} 2. Nf3 {[%emt 0:00:01]} e6 {[%emt 0:00:04]} 3. c4 {[%emt 0:00:01]} d5 {[%emt 0:00:02]} 4. e3 {[%emt 0:00:01]} c6 {[%emt 0:00:06]} 5. Nbd2 {[%emt 0:00:03]} Be7 {[%emt 0:00:02]} 6. Bd3 {[%emt 0:00:02]} O-O {[%emt 0:00:02]} 7. O-O {[%emt 0:00:03]} Nbd7 {[%emt 0:00:01]} 8. e4 {[%emt 0:00:05]} dxe4 {[%emt 0:00:02]} 9. Nxe4 {[%emt 0:00:02]} c5 {[%emt 0:00:01]} 10. dxc5 Nxc5 {[%emt 0:00:01]} 11. Nxf6+ {[%emt 0:00:17]} Bxf6 {[%emt 0:00:02]} 12. Bc2 {[%emt 0:00:01]} b6 {[%emt 0:00:07]} 13. Qe2 {[%emt 0:00:06]} Bb7 {[%emt 0:00:01]} 14. Be3 {[%emt 0:00:07]} Rc8 {[%emt 0:00:04]} 15. Rad1 {[%emt 0:00:04]} Qe7 {[%emt 0:00:02]} 16. Bd4 {[%emt 0:00:12]} Rfd8 {[%emt 0:00:18]} 17. Bxf6 {[%emt 0:00:02]} Qxf6 {[%emt 0:00:01]} 18. Ne5 {[%emt 0:00:02]} Qg5 {[%emt 0:00:08]} 19. f4 {[%emt 0:00:06]} Qe7 {[%emt 0:00:11]} 20. Rxd8+ {[%emt 0:00:37]} Rxd8 {[%emt 0:00:02]} 21. Rd1 {[%emt 0:00:02]} Rxd1+ {[%emt 0:00:09]} 22. Qxd1 {[%emt 0:00:01]} f6 {[%emt 0:00:02]} 23. Ng4 {[%emt 0:00:06]} Ne4 {[%emt 0:00:07]} 24. Qd4 {[%emt 0:00:09]} Qc5 {[%emt 0:00:02]} 25. Qxc5 {[%emt 0:00:02]} Nxc5 {[%emt 0:00:01]} 26. Kf2 {[%emt 0:00:12]} Ne4+ {[%emt 0:00:12]} 27. Bxe4 {[%emt 0:00:07]} Bxe4 {[%emt 0:00:03]} 28. g3 {[%emt 0:00:04]} Kf7 {[%emt 0:00:01]} 29. Ke3 {[%emt 0:00:01]} Bc6 {[%emt 0:00:01]} 30. Kd4 {[%emt 0:00:03]} Ke7 {[%emt 0:00:01]} 31. b4 {[%emt 0:00:02]} Kd6 {[%emt 0:00:07]} 32. a3 {[%emt 0:00:04]} Bb7 {[%emt 0:00:06]} 33. Nf2 {[%emt 0:00:06]} e5+ {[%emt 0:00:02]} 34. fxe5+ {[%emt 0:00:01]} fxe5+ {[%emt 0:00:01]} 35. Ke3 {[%emt 0:00:03]} h6 {[%emt 0:00:14]} 36. h4 {[%emt 0:00:03]} Ke6 {[%emt 0:00:03]} 37. g4 {[%emt 0:00:10]} h5 {[%emt 0:00:16]} 38. gxh5 {[%emt 0:00:14]} Kf5 {[%emt 0:00:01]} 39. Nd3 {[%emt 0:00:05]} Kg4 {[%emt 0:00:25]} 40. Nxe5+ {[%emt 0:00:02]} Kxh4 {[%emt 0:00:02]} 41. c5 {[%emt 0:00:01]} bxc5 42. bxc5 {[%emt 0:00:01]} Kxh5 {[%emt 0:00:02]} 43. c6 {[%emt 0:00:01]} Bc8 {[%emt 0:00:00]} 44. Nf7 {[%emt 0:00:05]} g5 {[%emt 0:00:36]} 45. Nd6 {[%emt 0:00:02]} Be6 {[%emt 0:00:01]} 46. c7 {[%emt 0:00:01]} a5 {[%emt 0:00:07]} 47. c8=Q {[%emt 0:00:24]} Bxc8 {[%emt 0:00:00]} 48. Nxc8 {[%emt 0:00:01]} Kg6 {[%emt 0:00:02]} 49. Nd6 {[%emt 0:00:02]} Kf6 {[%emt 0:00:12]} 50. Nc4 {[%emt 0:00:02]} a4 {[%emt 0:00:12]} 51. Nb2 {[%emt 0:00:03]} Ke5 {[%emt 0:00:01]} 52. Nxa4 {[%emt 0:00:02]} Kd5 {[%emt 0:00:01]} 53. Nc3+ {[%emt 0:00:10]} Kc4 {[%emt 0:00:01]} 54. a4 {[%emt 0:00:03]} 1-0